[Event "Early-Titled-Tuesday-Blitz-March-19-2024"]
[Site "Chess.com"]
[Date "2024.03.19"]
[Round "3"]
[White "Navyblue1"]
[Black "Road2GM3000"]
[Result "1-0"]
[WhiteElo "2225"]
[BlackElo "2410"]
[TimeControl "180+1"]
[EndTime "8:28:34 PDT"]
[Termination "Navyblue1 won by resignation"]

1. d4 {[%clk 0:02:55.4]} 1... d5 {[%clk 0:02:52.1]} 2. c4 {[%clk 0:02:55.3]}
2... c6 {[%clk 0:02:51.6]} 3. cxd5 {[%clk 0:02:50.9]} 3... cxd5 {[%clk
0:02:50.6]} 4. Nc3 {[%clk 0:02:51.5]} 4... Nf6 {[%clk 0:02:50.5]} 5. Bf4 {[%clk
0:02:51.9]} 5... Nc6 {[%clk 0:02:50.8]} 6. e3 {[%clk 0:02:51.7]} 6... a6 {[%clk
0:02:50.4]} 7. Bd3 {[%clk 0:02:50.6]} 7... Bg4 {[%clk 0:02:50.4]} 8. Nge2 {[%clk
0:02:44]} 8... e6 {[%clk 0:02:50.5]} 9. O-O {[%clk 0:02:38.7]} 9... Bd6 {[%clk
0:02:50]} 10. Bxd6 {[%clk 0:02:22.1]} 10... Qxd6 {[%clk 0:02:50.5]} 11. Rc1
{[%clk 0:02:21]} 11... O-O {[%clk 0:02:50.2]} 12. f3 {[%clk 0:01:56.5]} 12...
Bh5 {[%clk 0:02:49.1]} 13. Re1 {[%clk 0:01:54.7]} 13... e5 {[%clk 0:02:46.2]}
14. dxe5 {[%clk 0:01:49.4]} 14... Nxe5 {[%clk 0:02:46.4]} 15. Nf4 {[%clk
0:01:35.8]} 15... Bg6 {[%clk 0:02:44.8]} 16. Bxg6 {[%clk 0:01:20.3]} 16... hxg6
{[%clk 0:02:45.7]} 17. Nfxd5 {[%clk 0:01:00.4]} 17... Rad8 {[%clk 0:02:46.1]}
18. e4 {[%clk 0:00:48.6]} 18... g5 {[%clk 0:02:42.4]} 19. Kh1 {[%clk 0:00:32.2]}
19... Ng6 {[%clk 0:02:40.7]} 20. Qc2 {[%clk 0:00:25.8]} 20... Nh5 {[%clk
0:02:39.7]} 21. Rcd1 {[%clk 0:00:22.1]} 21... Qb8 {[%clk 0:02:37.7]} 22. Ne2
{[%clk 0:00:19]} 22... Rde8 {[%clk 0:02:35]} 23. Qc1 {[%clk 0:00:18.7]} 23...
Ngf4 {[%clk 0:02:33.5]} 24. Nexf4 {[%clk 0:00:18.5]} 24... gxf4 {[%clk
0:02:34.4]} 25. Kg1 {[%clk 0:00:16.2]} 25... Re6 {[%clk 0:02:34.7]} 26. Qc5
{[%clk 0:00:15.6]} 26... Rfe8 {[%clk 0:02:27.3]} 27. Rc1 {[%clk 0:00:15.3]}
27... Re5 {[%clk 0:02:25.9]} 28. Qf2 {[%clk 0:00:14.3]} 28... Rg5 {[%clk
0:02:22.9]} 29. Red1 {[%clk 0:00:14.6]} 29... Rg6 {[%clk 0:02:21.3]} 30. Nc3
{[%clk 0:00:13.9]} 30... Qe5 {[%clk 0:02:17.3]} 31. Rd5 {[%clk 0:00:13.7]} 31...
Qe6 {[%clk 0:02:16.6]} 32. Rcd1 {[%clk 0:00:13.9]} 32... Nf6 {[%clk 0:02:15.9]}
33. Rd6 {[%clk 0:00:13.5]} 33... Qe7 {[%clk 0:02:15.9]} 34. Qd2 {[%clk
0:00:11.5]} 34... Kh7 {[%clk 0:02:09.1]} 35. Rd8 {[%clk 0:00:11.2]} 35... Rxd8
{[%clk 0:02:08.7]} 36. Qxd8 {[%clk 0:00:10.7]} 36... Qc5+ {[%clk 0:02:09]} 37.
Qd4 {[%clk 0:00:10.8]} 37... Qc6 {[%clk 0:02:07.3]} 38. Nd5 {[%clk 0:00:10]}
38... Nxd5 {[%clk 0:02:06.5]} 39. exd5 {[%clk 0:00:09.5]} 39... Qd6 {[%clk
0:02:06.5]} 40. Qd3 {[%clk 0:00:08.6]} 40... Kh6 {[%clk 0:02:03.9]} 41. Kh1
{[%clk 0:00:08.3]} 41... Rg5 {[%clk 0:02:04.4]} 42. b3 {[%clk 0:00:08.3]} 42...
Re5 {[%clk 0:02:03.9]} 43. Qd2 {[%clk 0:00:08.6]} 43... g5 {[%clk 0:02:04.1]}
44. h3 {[%clk 0:00:09]} 44... f5 {[%clk 0:02:02.7]} 45. a4 {[%clk 0:00:09.2]}
45... Kg6 {[%clk 0:02:02.1]} 46. Kh2 {[%clk 0:00:08.3]} 46... Re3 {[%clk
0:01:56.4]} 47. b4 {[%clk 0:00:08.4]} 47... g4 {[%clk 0:01:55.7]} 48. hxg4
{[%clk 0:00:08.7]} 48... fxg4 {[%clk 0:01:56.2]} 49. Qc2+ {[%clk 0:00:09]} 49...
Kg5 {[%clk 0:01:51.2]} 50. Qc8 {[%clk 0:00:07.4]} 50... Qh6+ {[%clk 0:01:14.4]}
51. Kg1 {[%clk 0:00:06.8]} 51... Re7 {[%clk 0:01:15.1]} 52. Qxg4+ {[%clk
0:00:06.6]} 52... Kf6 {[%clk 0:01:15]} 53. d6 {[%clk 0:00:05.9]} 53... Rg7
{[%clk 0:01:13.1]} 54. Qc8 {[%clk 0:00:02.5]} 54... Qg5 {[%clk 0:01:13.2]} 55.
Qd8+ {[%clk 0:00:02.8]} 55... Kg6 {[%clk 0:01:13.9]} 56. Qxg5+ {[%clk
0:00:01.6]} 56... Kxg5 {[%clk 0:01:14.8]} 57. d7 {[%clk 0:00:02.2]} 57... Rg8
{[%clk 0:01:15.7]} 58. d8=Q+ {[%clk 0:00:02.6]} 58... Rxd8 {[%clk 0:01:16]} 59.
Rxd8 {[%clk 0:00:03.2]} 59... Kf6 {[%clk 0:01:16.9]} 60. Rb8 {[%clk 0:00:03.9]}
60... a5 {[%clk 0:01:17.8]} 61. Rxb7 {[%clk 0:00:04.5]} 61... axb4 {[%clk
0:01:18.7]} 62. Rxb4 {[%clk 0:00:04.9]} 1-0

[Event "Early-Titled-Tuesday-Blitz-March-19-2024"]
[Site "Chess.com"]
[Date "2024.03.19"]
[Round "3"]
[White "Beca95"]
[Black "GoltsevDmitry2000"]
[Result "1-0"]
[WhiteElo "2985"]
[BlackElo "2764"]
[TimeControl "180+1"]
[EndTime "8:28:35 PDT"]
[Termination "Beca95 won by checkmate"]

1. d4 {[%clk 0:02:59.5]} 1... e6 {[%clk 0:02:59.9]} 2. Nf3 {[%clk 0:02:59.1]}
2... d5 {[%clk 0:02:59.1]} 3. c4 {[%clk 0:02:59.1]} 3... Nf6 {[%clk 0:03:00]} 4.
Nc3 {[%clk 0:02:59.1]} 4... c5 {[%clk 0:03:00.9]} 5. cxd5 {[%clk 0:02:58]} 5...
exd5 {[%clk 0:03:01.8]} 6. Bg5 {[%clk 0:02:57.1]} 6... cxd4 {[%clk 0:03:01.1]}
7. Nxd4 {[%clk 0:02:44.2]} 7... Nc6 {[%clk 0:02:51.1]} 8. e3 {[%clk 0:02:44]}
8... Be7 {[%clk 0:02:50.4]} 9. Be2 {[%clk 0:02:43.4]} 9... h6 {[%clk 0:02:49.7]}
10. Bh4 {[%clk 0:02:43.3]} 10... O-O {[%clk 0:02:49.5]} 11. O-O {[%clk
0:02:43.4]} 11... a6 {[%clk 0:02:49.5]} 12. Rc1 {[%clk 0:02:43.1]} 12... Nxd4
{[%clk 0:02:44.5]} 13. Qxd4 {[%clk 0:02:43.2]} 13... Be6 {[%clk 0:02:45]} 14.
Rfd1 {[%clk 0:02:43]} 14... Rc8 {[%clk 0:02:44.7]} 15. a3 {[%clk 0:02:30.5]}
15... b5 {[%clk 0:02:43.3]} 16. b4 {[%clk 0:02:17.1]} 16... Qd7 {[%clk
0:02:31.1]} 17. h3 {[%clk 0:02:14.8]} 17... Rc6 {[%clk 0:02:29]} 18. Na2 {[%clk
0:02:04.5]} 18... Rfc8 {[%clk 0:02:26.6]} 19. Rxc6 {[%clk 0:02:04.3]} 19... Qxc6
{[%clk 0:02:26.8]} 20. Rc1 {[%clk 0:02:03.4]} 20... Qb7 {[%clk 0:02:20.8]} 21.
Rxc8+ {[%clk 0:02:03]} 21... Qxc8 {[%clk 0:02:21.7]} 22. Nc3 {[%clk 0:02:02.8]}
22... Ne4 {[%clk 0:02:15.1]} 23. Bxe7 {[%clk 0:01:59.3]} 23... Qxc3 {[%clk
0:02:10.3]} 24. Qxc3 {[%clk 0:01:57.7]} 24... Nxc3 {[%clk 0:02:11.2]} 25. Bd3
{[%clk 0:01:57.8]} 25... Ne4 {[%clk 0:01:58.8]} 26. f3 {[%clk 0:01:54.6]} 26...
Nd2 {[%clk 0:01:56.5]} 27. Bc5 {[%clk 0:01:31.3]} 27... Nc4 {[%clk 0:01:55.7]}
28. Bxc4 {[%clk 0:01:31.3]} 28... dxc4 {[%clk 0:01:56.6]} 29. Bd4 {[%clk
0:01:31]} 29... g6 {[%clk 0:01:51]} 30. Kf2 {[%clk 0:01:30.3]} 30... Kf8 {[%clk
0:01:51.3]} 31. e4 {[%clk 0:01:30.3]} 31... Ke7 {[%clk 0:01:51]} 32. Ke3 {[%clk
0:01:30.4]} 32... h5 {[%clk 0:01:51.4]} 33. h4 {[%clk 0:01:29.8]} 33... Kd6
{[%clk 0:01:48.7]} 34. Kf4 {[%clk 0:01:28.4]} 34... Kc6 {[%clk 0:01:45.9]} 35.
Bc3 {[%clk 0:01:26.7]} 35... Kd6 {[%clk 0:01:45.7]} 36. Kg5 {[%clk 0:01:26.5]}
36... Ke7 {[%clk 0:01:45.3]} 37. g4 {[%clk 0:01:26.5]} 37... hxg4 {[%clk
0:01:42.4]} 38. fxg4 {[%clk 0:01:27.4]} 38... Kf8 {[%clk 0:01:43.1]} 39. h5
{[%clk 0:01:24.1]} 39... gxh5 {[%clk 0:01:43.2]} 40. gxh5 {[%clk 0:01:24.3]}
40... Kg8 {[%clk 0:01:43.6]} 41. h6 {[%clk 0:01:14.6]} 41... Kh7 {[%clk
0:01:43.7]} 42. Bd2 {[%clk 0:01:14.6]} 42... Bh3 {[%clk 0:01:42.6]} 43. Kf6
{[%clk 0:01:13.8]} 43... Be6 {[%clk 0:01:43]} 44. Ke7 {[%clk 0:01:11.3]} 44...
Kg6 {[%clk 0:01:43.2]} 45. Kd6 {[%clk 0:01:10.9]} 45... Kh7 {[%clk 0:01:43.2]}
46. Kc6 {[%clk 0:01:10.9]} 46... Kg6 {[%clk 0:01:43.6]} 47. Kb7 {[%clk
0:01:10.6]} 47... f5 {[%clk 0:01:32.4]} 48. e5 {[%clk 0:00:59.9]} 48... c3
{[%clk 0:01:29.2]} 49. Bc1 {[%clk 0:00:59.6]} 49... Bc4 {[%clk 0:01:20.4]} 50.
Kxa6 {[%clk 0:00:57.8]} 50... Kh7 {[%clk 0:01:18.7]} 51. Kb6 {[%clk 0:00:57.6]}
51... Kg6 {[%clk 0:01:18.5]} 52. Kc5 {[%clk 0:00:57.4]} 52... Kf7 {[%clk
0:01:18.6]} 53. a4 {[%clk 0:00:57.2]} 53... Bd3 {[%clk 0:01:15]} 54. a5 {[%clk
0:00:55.8]} 54... f4 {[%clk 0:01:15.1]} 55. Bxf4 {[%clk 0:00:55.5]} 55... Ke6
{[%clk 0:01:15.6]} 56. a6 {[%clk 0:00:55.4]} 56... Kd7 {[%clk 0:01:15.9]} 57. a7
{[%clk 0:00:54.6]} 57... Be4 {[%clk 0:01:16.8]} 58. h7 {[%clk 0:00:54.7]} 58...
Bxh7 {[%clk 0:01:16.9]} 59. a8=Q {[%clk 0:00:53.5]} 59... Ke7 {[%clk 0:01:17.8]}
60. Qb7+ {[%clk 0:00:53.1]} 60... Ke6 {[%clk 0:01:18.3]} 61. Qxh7 {[%clk
0:00:52.8]} 61... c2 {[%clk 0:01:19.2]} 62. Qg6+ {[%clk 0:00:52.6]} 62... Ke7
{[%clk 0:01:20.1]} 63. Bg5+ {[%clk 0:00:52.6]} 63... Kd7 {[%clk 0:01:20.3]} 64.
Qd6+ {[%clk 0:00:48.9]} 64... Kc8 {[%clk 0:01:20.5]} 65. Qc6+ {[%clk 0:00:48.8]}
65... Kb8 {[%clk 0:01:20.5]} 66. Kb6 {[%clk 0:00:48.8]} 66... c1=Q {[%clk
0:01:20.7]} 67. Qb7# {[%clk 0:00:48.6]} 1-0

[Event "Early-Titled-Tuesday-Blitz-March-19-2024"]
[Site "Chess.com"]
[Date "2024.03.19"]
[Round "3"]
[White "Tonychess32"]
[Black "microbear"]
[Result "0-1"]
[WhiteElo "2518"]
[BlackElo "2311"]
[TimeControl "180+1"]
[EndTime "8:28:37 PDT"]
[Termination "microbear won by resignation"]

1. e4 {[%clk 0:03:00.9]} 1... c5 {[%clk 0:02:45.3]} 2. Nf3 {[%clk 0:03:00.9]}
2... d6 {[%clk 0:02:45.4]} 3. c3 {[%clk 0:03:01.4]} 3... Nf6 {[%clk 0:02:44.4]}
4. Bd3 {[%clk 0:03:01.7]} 4... Nc6 {[%clk 0:02:43.5]} 5. h3 {[%clk 0:03:02.1]}
5... g6 {[%clk 0:02:42]} 6. O-O {[%clk 0:03:02.4]} 6... Bg7 {[%clk 0:02:40.9]}
7. Re1 {[%clk 0:03:02.9]} 7... e5 {[%clk 0:02:34.5]} 8. Bc2 {[%clk 0:03:02.5]}
8... O-O {[%clk 0:02:32.7]} 9. d3 {[%clk 0:02:56.2]} 9... Be6 {[%clk 0:02:30.3]}
10. a4 {[%clk 0:02:53.3]} 10... h6 {[%clk 0:02:25.1]} 11. Be3 {[%clk 0:02:51.2]}
11... a6 {[%clk 0:02:24.4]} 12. d4 {[%clk 0:02:41]} 12... cxd4 {[%clk 0:02:15]}
13. cxd4 {[%clk 0:02:41.3]} 13... Bd7 {[%clk 0:01:35.1]} 14. Nc3 {[%clk
0:02:36.5]} 14... Rc8 {[%clk 0:01:30]} 15. dxe5 {[%clk 0:02:10.5]} 15... dxe5
{[%clk 0:01:16.8]} 16. Bb3 {[%clk 0:02:10]} 16... Re8 {[%clk 0:01:13.3]} 17. Qe2
{[%clk 0:01:55.1]} 17... Qc7 {[%clk 0:01:06]} 18. Rac1 {[%clk 0:01:53.8]} 18...
Be6 {[%clk 0:00:59.2]} 19. Nd5 {[%clk 0:01:53.9]} 19... Qb8 {[%clk 0:00:45.7]}
20. Bb6 {[%clk 0:01:40.7]} 20... Bxd5 {[%clk 0:00:32.1]} 21. exd5 {[%clk
0:01:37.5]} 21... Nd4 {[%clk 0:00:32.4]} 22. Rxc8 {[%clk 0:01:32.4]} 22... Nxe2+
{[%clk 0:00:31.7]} 23. Rxe2 {[%clk 0:01:31.8]} 23... Qxc8 {[%clk 0:00:32.1]} 24.
d6 {[%clk 0:01:28.9]} 24... Nd7 {[%clk 0:00:32.1]} 25. Bc7 {[%clk 0:01:27.4]}
25... Nc5 {[%clk 0:00:28.2]} 26. Ba2 {[%clk 0:01:21]} 26... Ne6 {[%clk 0:00:27]}
27. Rc2 {[%clk 0:01:11.9]} 27... Nxc7 {[%clk 0:00:26.3]} 28. Rxc7 {[%clk
0:01:09.5]} 28... Qf5 {[%clk 0:00:25.7]} 29. Nh4 {[%clk 0:00:45]} 29... Qf6
{[%clk 0:00:22.1]} 30. d7 {[%clk 0:00:41.1]} 30... Rd8 {[%clk 0:00:20.7]} 31.
Nf3 {[%clk 0:00:35.6]} 31... Qe7 {[%clk 0:00:20.6]} 32. Rxb7 {[%clk 0:00:32.8]}
32... Rxd7 {[%clk 0:00:20.2]} 33. Rb8+ {[%clk 0:00:32.2]} 33... Kh7 {[%clk
0:00:20.4]} 34. a5 {[%clk 0:00:24.4]} 34... e4 {[%clk 0:00:19.9]} 35. Nh2 {[%clk
0:00:22.6]} 35... Rd1+ {[%clk 0:00:19.5]} 36. Nf1 {[%clk 0:00:22.7]} 36... e3
{[%clk 0:00:18.8]} 37. fxe3 {[%clk 0:00:16.7]} 37... Qxe3+ {[%clk 0:00:18.6]}
0-1

[Event "Early-Titled-Tuesday-Blitz-March-19-2024"]
[Site "Chess.com"]
[Date "2024.03.19"]
[Round "3"]
[White "Iball95"]
[Black "AttackSparrow"]
[Result "1/2-1/2"]
[WhiteElo "2894"]
[BlackElo "2647"]
[TimeControl "180+1"]
[EndTime "8:28:39 PDT"]
[Termination "Game drawn by repetition"]

1. e4 {[%clk 0:02:59.7]} 1... e5 {[%clk 0:03:00]} 2. Nf3 {[%clk 0:03:00.4]} 2...
Nc6 {[%clk 0:03:00.6]} 3. Nc3 {[%clk 0:03:01]} 3... Nf6 {[%clk 0:03:00.5]} 4.
Bb5 {[%clk 0:03:01.6]} 4... Bd6 {[%clk 0:03:00.1]} 5. a3 {[%clk 0:03:01.5]} 5...
O-O {[%clk 0:02:55.1]} 6. d3 {[%clk 0:03:01.5]} 6... Nd4 {[%clk 0:02:51.3]} 7.
Bc4 {[%clk 0:03:00.2]} 7... c6 {[%clk 0:02:51.4]} 8. Be3 {[%clk 0:02:59.4]} 8...
Nxf3+ {[%clk 0:02:02.5]} 9. Qxf3 {[%clk 0:03:00.3]} 9... Be7 {[%clk 0:01:57.4]}
10. h3 {[%clk 0:02:57.3]} 10... d6 {[%clk 0:01:56.5]} 11. g4 {[%clk 0:02:50.8]}
11... Be6 {[%clk 0:01:56.2]} 12. g5 {[%clk 0:02:50.1]} 12... Nd7 {[%clk
0:01:56.4]} 13. h4 {[%clk 0:02:48.6]} 13... b5 {[%clk 0:01:53.6]} 14. Bxe6
{[%clk 0:02:45.2]} 14... fxe6 {[%clk 0:01:54.5]} 15. Qg4 {[%clk 0:02:43.9]}
15... Kh8 {[%clk 0:01:54.1]} 16. Qxe6 {[%clk 0:02:41.1]} 16... a5 {[%clk
0:01:46.5]} 17. Ne2 {[%clk 0:02:31.7]} 17... d5 {[%clk 0:01:24.4]} 18. exd5
{[%clk 0:02:21.3]} 18... cxd5 {[%clk 0:01:25.3]} 19. Qxd5 {[%clk 0:02:21.5]}
19... Qc7 {[%clk 0:01:20.6]} 20. c3 {[%clk 0:02:08.5]} 20... Rad8 {[%clk
0:01:04.2]} 21. Qe4 {[%clk 0:01:29.7]} 21... b4 {[%clk 0:00:56.3]} 22. axb4
{[%clk 0:01:26.7]} 22... axb4 {[%clk 0:00:57.2]} 23. O-O {[%clk 0:01:23.4]}
23... Nc5 {[%clk 0:00:48.5]} 24. Bxc5 {[%clk 0:01:22.2]} 24... Bxc5 {[%clk
0:00:49.4]} 25. Kg2 {[%clk 0:01:16]} 25... Rf7 {[%clk 0:00:39]} 26. Ra8 {[%clk
0:01:15]} 26... Rxa8 {[%clk 0:00:34.4]} 27. Qxa8+ {[%clk 0:01:15.9]} 27... Rf8
{[%clk 0:00:35.3]} 28. Qe4 {[%clk 0:01:15.9]} 28... bxc3 {[%clk 0:00:34.9]} 29.
bxc3 {[%clk 0:01:16.8]} 29... Bd6 {[%clk 0:00:35.4]} 30. Ra1 {[%clk 0:01:12]}
30... Qb6 {[%clk 0:00:34.9]} 31. d4 {[%clk 0:00:58.2]} 31... exd4 {[%clk
0:00:35.8]} 32. cxd4 {[%clk 0:00:59.1]} 32... Qd8 {[%clk 0:00:35.5]} 33. Ra7
{[%clk 0:00:58.1]} 33... Re8 {[%clk 0:00:31.4]} 34. Qd5 {[%clk 0:00:51.4]} 34...
Qb8 {[%clk 0:00:11.7]} 35. Rb7 {[%clk 0:00:48.5]} 35... Qc8 {[%clk 0:00:10.5]}
36. Ng1 {[%clk 0:00:37.6]} 36... Qg4+ {[%clk 0:00:09.2]} 37. Kf1 {[%clk
0:00:35.1]} 37... Qd1+ {[%clk 0:00:09.3]} 38. Kg2 {[%clk 0:00:35.7]} 38... Qg4+
{[%clk 0:00:10]} 39. Kf1 {[%clk 0:00:34.6]} 39... Qd1+ {[%clk 0:00:10.3]} 40.
Kg2 {[%clk 0:00:34.5]} 40... Qg4+ {[%clk 0:00:10.6]} 1/2-1/2

[Event "Early-Titled-Tuesday-Blitz-March-19-2024"]
[Site "Chess.com"]
[Date "2024.03.19"]
[Round "3"]
[White "nikitakhoroshev"]
[Black "Rud_Makarian"]
[Result "1-0"]
[WhiteElo "2695"]
[BlackElo "2964"]
[TimeControl "180+1"]
[EndTime "8:28:39 PDT"]
[Termination "nikitakhoroshev won by checkmate"]

1. e4 {[%clk 0:03:00.9]} 1... c5 {[%clk 0:02:46.1]} 2. Nf3 {[%clk 0:02:59.6]}
2... d6 {[%clk 0:02:42.8]} 3. d4 {[%clk 0:02:58.9]} 3... cxd4 {[%clk 0:02:43.3]}
4. Nxd4 {[%clk 0:02:59.7]} 4... Nf6 {[%clk 0:02:43.7]} 5. Nc3 {[%clk 0:02:59.9]}
5... a6 {[%clk 0:02:44.4]} 6. Bg5 {[%clk 0:02:59.5]} 6... Nbd7 {[%clk
0:02:44.2]} 7. h3 {[%clk 0:02:51.9]} 7... e6 {[%clk 0:02:39.1]} 8. g4 {[%clk
0:02:48.4]} 8... b5 {[%clk 0:02:35.5]} 9. Bg2 {[%clk 0:02:47.8]} 9... Bb7 {[%clk
0:02:35.2]} 10. Qe2 {[%clk 0:02:46.8]} 10... b4 {[%clk 0:02:30.7]} 11. Nd1
{[%clk 0:02:43.9]} 11... Qc7 {[%clk 0:02:20.5]} 12. Bh4 {[%clk 0:02:39]} 12...
h6 {[%clk 0:02:15.1]} 13. Bg3 {[%clk 0:02:38.6]} 13... Qb6 {[%clk 0:02:10.9]}
14. c3 {[%clk 0:02:30.4]} 14... bxc3 {[%clk 0:02:09.4]} 15. bxc3 {[%clk
0:02:31.3]} 15... Be7 {[%clk 0:02:09.3]} 16. O-O {[%clk 0:02:30.6]} 16... O-O
{[%clk 0:02:09.4]} 17. Nb2 {[%clk 0:02:29.3]} 17... Rac8 {[%clk 0:02:07.8]} 18.
Rfb1 {[%clk 0:02:19]} 18... Qc7 {[%clk 0:01:50.3]} 19. Nd1 {[%clk 0:02:17.5]}
19... Nc5 {[%clk 0:01:47.6]} 20. f3 {[%clk 0:02:16.8]} 20... Na4 {[%clk
0:01:45.2]} 21. Rc1 {[%clk 0:02:14]} 21... Nd7 {[%clk 0:01:40.8]} 22. Rab1
{[%clk 0:02:12.9]} 22... Rb8 {[%clk 0:01:40.5]} 23. Bf1 {[%clk 0:02:08.6]} 23...
Rfc8 {[%clk 0:01:40.1]} 24. Qd2 {[%clk 0:02:07.3]} 24... Ne5 {[%clk 0:01:37.8]}
25. Kg2 {[%clk 0:02:06]} 25... Bg5 {[%clk 0:01:32.5]} 26. Bf4 {[%clk 0:02:04.4]}
26... Bxf4 {[%clk 0:01:26]} 27. Qxf4 {[%clk 0:02:05.3]} 27... Ng6 {[%clk
0:01:25.6]} 28. Qe3 {[%clk 0:02:04.3]} 28... Nc5 {[%clk 0:01:12.4]} 29. Nf2
{[%clk 0:01:55.1]} 29... d5 {[%clk 0:01:12.2]} 30. exd5 {[%clk 0:01:51.1]} 30...
Nh4+ {[%clk 0:01:11.5]} 31. Kh1 {[%clk 0:01:48.4]} 31... Bxd5 {[%clk 0:01:12.4]}
32. Rxb8 {[%clk 0:01:46.5]} 32... Bxf3+ {[%clk 0:01:07]} 33. Nxf3 {[%clk
0:01:42.5]} 33... Rxb8 {[%clk 0:00:56]} 34. Nxh4 {[%clk 0:01:41.4]} 34... Rb2
{[%clk 0:00:56.9]} 35. Ng2 {[%clk 0:01:35.6]} 35... Rxa2 {[%clk 0:00:56.3]} 36.
c4 {[%clk 0:01:34.7]} 36... a5 {[%clk 0:00:55.9]} 37. Nd3 {[%clk 0:01:34.4]}
37... Nb3 {[%clk 0:00:53.8]} 38. Rb1 {[%clk 0:01:30]} 38... a4 {[%clk
0:00:51.9]} 39. c5 {[%clk 0:01:28.3]} 39... Nd2 {[%clk 0:00:46.8]} 40. Rd1
{[%clk 0:01:23.8]} 40... Nb3 {[%clk 0:00:39]} 41. Nb4 {[%clk 0:01:12.5]} 41...
Rb2 {[%clk 0:00:39.1]} 42. c6 {[%clk 0:01:12.4]} 42... Qa5 {[%clk 0:00:32.8]}
43. Qc3 {[%clk 0:01:09.5]} 43... Nd4 {[%clk 0:00:18.1]} 44. Qxb2 {[%clk
0:01:06.4]} 44... e5 {[%clk 0:00:17.5]} 45. Rxd4 {[%clk 0:01:02.8]} 45... exd4
{[%clk 0:00:18.4]} 46. Qxd4 {[%clk 0:01:03.2]} 46... a3 {[%clk 0:00:19.1]} 47.
Qc3 {[%clk 0:01:01.2]} 47... a2 {[%clk 0:00:18.6]} 48. Nxa2 {[%clk 0:01:01]}
48... Qa6 {[%clk 0:00:17.9]} 49. Bxa6 {[%clk 0:00:58.5]} 49... f5 {[%clk
0:00:18.6]} 50. c7 {[%clk 0:00:51.3]} 50... h5 {[%clk 0:00:19.5]} 51. c8=Q+
{[%clk 0:00:50.7]} 51... Kf7 {[%clk 0:00:20.4]} 52. Q3c7+ {[%clk 0:00:49.7]}
52... Kg6 {[%clk 0:00:20.9]} 53. Qxf5+ {[%clk 0:00:50.2]} 53... Kh6 {[%clk
0:00:21.3]} 54. Qxh5# {[%clk 0:00:51.1]} 1-0

[Event "Early-Titled-Tuesday-Blitz-March-19-2024"]
[Site "Chess.com"]
[Date "2024.03.19"]
[Round "3"]
[White "hitaman"]
[Black "toninhojit"]
[Result "1/2-1/2"]
[WhiteElo "2706"]
[BlackElo "2497"]
[TimeControl "180+1"]
[EndTime "8:28:39 PDT"]
[Termination "Game drawn - insufficient material"]

1. e4 {[%clk 0:02:59.9]} 1... e5 {[%clk 0:03:00.3]} 2. Nf3 {[%clk 0:02:58.9]}
2... Nc6 {[%clk 0:03:01]} 3. Nc3 {[%clk 0:02:57.1]} 3... Nf6 {[%clk 0:03:01.1]}
4. d4 {[%clk 0:02:57.2]} 4... exd4 {[%clk 0:03:01.6]} 5. Nxd4 {[%clk 0:02:58.1]}
5... Nxe4 {[%clk 0:03:02.2]} 6. Nxc6 {[%clk 0:02:51.5]} 6... Nxc3 {[%clk
0:03:00.4]} 7. Nxd8 {[%clk 0:02:51.8]} 7... Nxd1 {[%clk 0:03:00.5]} 8. Nxf7
{[%clk 0:02:52.1]} 8... Kxf7 {[%clk 0:02:59]} 9. Bc4+ {[%clk 0:02:47]} 9... Kg6
{[%clk 0:02:48.4]} 10. Kxd1 {[%clk 0:02:45.8]} 10... Bc5 {[%clk 0:02:42.2]} 11.
f3 {[%clk 0:02:30.5]} 11... d5 {[%clk 0:02:39.3]} 12. Bd3+ {[%clk 0:02:23.9]}
12... Bf5 {[%clk 0:02:39.8]} 13. Bxf5+ {[%clk 0:02:19.4]} 13... Kxf5 {[%clk
0:02:40.7]} 14. Ke2 {[%clk 0:02:13]} 14... Rhe8+ {[%clk 0:02:40.4]} 15. Kd3
{[%clk 0:02:13.5]} 15... Re7 {[%clk 0:02:33.7]} 16. Bd2 {[%clk 0:02:08.2]} 16...
Rae8 {[%clk 0:02:33.6]} 17. Rae1 {[%clk 0:02:07.7]} 17... h5 {[%clk 0:02:29.4]}
18. Rxe7 {[%clk 0:02:00.8]} 18... Rxe7 {[%clk 0:02:30.3]} 19. g3 {[%clk
0:01:53.2]} 19... Bb6 {[%clk 0:02:23.1]} 20. b3 {[%clk 0:01:50]} 20... c6 {[%clk
0:02:18.2]} 21. h3 {[%clk 0:01:49.9]} 21... Kg6 {[%clk 0:02:12.4]} 22. a4 {[%clk
0:01:49.3]} 22... Bc7 {[%clk 0:02:12.2]} 23. g4 {[%clk 0:01:47.6]} 23... hxg4
{[%clk 0:02:09.7]} 24. hxg4 {[%clk 0:01:47.7]} 24... Rf7 {[%clk 0:02:08.1]} 25.
Rh3 {[%clk 0:01:43]} 25... Bf4 {[%clk 0:02:07.7]} 26. Bxf4 {[%clk 0:01:20]}
26... Rxf4 {[%clk 0:02:08.6]} 27. Ke3 {[%clk 0:01:20.7]} 27... Rf8 {[%clk
0:02:07.6]} 28. Rh5 {[%clk 0:01:13.7]} 28... Re8+ {[%clk 0:02:06]} 29. Kd3
{[%clk 0:01:11.6]} 29... Re1 {[%clk 0:02:00.8]} 30. Rh8 {[%clk 0:01:09.4]} 30...
Rd1+ {[%clk 0:01:48.7]} 31. Ke2 {[%clk 0:01:08.4]} 31... Rc1 {[%clk 0:01:48.4]}
32. Kd2 {[%clk 0:01:08.8]} 32... Rf1 {[%clk 0:01:48.5]} 33. Rb8 {[%clk 0:01:07]}
33... b6 {[%clk 0:01:45.1]} 34. Rc8 {[%clk 0:01:03.2]} 34... c5 {[%clk
0:01:43.5]} 35. Rf8 {[%clk 0:00:57.9]} 35... d4 {[%clk 0:01:40.3]} 36. f4 {[%clk
0:00:57.5]} 36... Rg1 {[%clk 0:01:39]} 37. f5+ {[%clk 0:00:53.3]} 37... Kg5
{[%clk 0:01:37.7]} 38. Rf7 {[%clk 0:00:53.6]} 38... Rxg4 {[%clk 0:01:32.8]} 39.
Rxg7+ {[%clk 0:00:53.8]} 39... Kxf5 {[%clk 0:01:33.3]} 40. Rxa7 {[%clk
0:00:54.7]} 40... Ke4 {[%clk 0:01:29.4]} 41. Rb7 {[%clk 0:00:48.7]} 41... Rg6
{[%clk 0:01:22]} 42. Rd7 {[%clk 0:00:40.7]} 42... Rh6 {[%clk 0:01:21.6]} 43. Kc1
{[%clk 0:00:40.5]} 43... Rg6 {[%clk 0:01:20.9]} 44. Kb2 {[%clk 0:00:40.8]} 44...
Ke5 {[%clk 0:01:18.5]} 45. Rd8 {[%clk 0:00:36.6]} 45... Rd6 {[%clk 0:01:12.6]}
46. Rxd6 {[%clk 0:00:32]} 46... Kxd6 {[%clk 0:01:12.7]} 47. Kc1 {[%clk
0:00:32.9]} 47... Kc6 {[%clk 0:00:54.1]} 48. Kd2 {[%clk 0:00:29.8]} 48... b5
{[%clk 0:00:54.6]} 49. axb5+ {[%clk 0:00:17.8]} 49... Kxb5 {[%clk 0:00:54.7]}
50. Kd3 {[%clk 0:00:18.2]} 50... Kb4 {[%clk 0:00:53.4]} 51. Kd2 {[%clk
0:00:17.6]} 51... c4 {[%clk 0:00:51]} 52. bxc4 {[%clk 0:00:17.5]} 52... Kxc4
{[%clk 0:00:51.9]} 53. Ke2 {[%clk 0:00:17.2]} 53... Kc3 {[%clk 0:00:51.3]} 54.
Kd1 {[%clk 0:00:18.1]} 54... d3 {[%clk 0:00:51.3]} 55. cxd3 {[%clk 0:00:19]}
55... Kxd3 {[%clk 0:00:52.1]} 1/2-1/2